bitfinex/quotes_ETHUSD_20260117
["timestamp","ask_amount","ask_price","bid_price","bid_amount"]
[1768664348518,8.98477382,3325.0,3324.1,3.00826734]
[1768664348886,8.98477382,3325.0,3323.8,3.00858445]
[1768664349209,8.98477382,3325.0,3323.7,3.9599384]
[1768664349605,3.00659397,3326.1,3323.8,6.04729524]
[1768664349606,8.98477382,3324.8,3323.8,6.04729524]
[1768664349787,8.98477382,3324.6,3323.8,6.53343978]
[1768664349992,0.496,3324.5,3324.0,2.05928102]
[1768664350186,0.496,3324.6,3324.0,2.05928102]
[1768664350728,0.1140883,3324.6,3324.0,2.05928102]
[1768664351186,8.98477382,3324.9,3324.0,2.05928102]
[1768664351418,0.496,3324.7,3324.0,2.05928102]
[1768664351722,8.98477382,3324.9,3324.2,3.00824258]
[1768664351958,0.496,3324.8,3324.2,3.00824258]
[1768664352120,9.48077382,3324.9,3324.5,0.001]
[1768664352320,0.002,3324.8,3324.5,0.001]
[1768664354524,8.98677382,3325.1,3324.5,0.48714454]
[1768664354763,9.48277382,3325.1,3324.6,0.48614454]
[1768664355156,9.48277382,3325.1,3324.5,0.001]
[1768664355368,8.98677382,3325.1,3324.5,0.001]
[1768664356440,3.00647381,3326.2,3324.5,0.001]
[1768664356441,8.98477382,3326.3,3324.7,9.36186793]
[1768664356666,9.48077382,3326.2,3324.9,9.36186793]
[1768664357880,8.98477382,3326.0,3325.0,8.76900952]
[1768664359245,9.48077382,3325.9,3325.0,8.76900952]
[1768664360175,9.48077382,3325.9,3325.0,11.77647422]
[1768664360377,9.48077382,3325.9,3325.0,13.40285367]
[1768664360677,8.98477382,3325.9,3325.0,13.40285367]
[1768664360875,0.496,3325.8,3325.0,13.40285367]
[1768664361078,9.48077382,3325.8,3324.8,0.98480125]
[1768664361377,9.48077382,3325.8,3324.5,7.90601419]
[1768664361378,8.98477382,3325.7,3324.6,7.90501419]
[1768664361578,8.98477382,3325.7,3324.5,0.001]
[1768664361579,8.98477382,3325.7,3325.0,10.91252233]
[1768664361777,0.496,3325.8,3325.1,7.60464354]
[1768664361980,8.98477382,3326.0,3325.2,5.17069339]
[1768664362280,4.99825333,3326.3,3325.3,5.14062002]
[1768664362467,0.496,3326.7,3325.5,5.14062002]
[1768664362670,0.496,3326.7,3325.2,10.14058505]
[1768664362671,4.99825333,3326.4,3325.3,5.14062002]
[1768664362977,4.99825333,3326.4,3325.4,0.495]
[1768664363355,4.99825333,3326.4,3325.2,3.00733722]
[1768664363553,4.99825333,3326.4,3324.6,3.00783042]
[1768664363554,4.99825333,3326.2,3325.0,5.63562002]
[1768664363773,5.49425333,3326.1,3325.3,0.03007247]
[1768664363967,5.49425333,3326.1,3325.2,11.15529582]
[1768664364680,5.49625333,3326.1,3325.3,5.14062002]
[1768664364877,5.49625333,3326.1,3325.1,3.00736096]
[1768664364878,4.99825333,3326.0,3325.1,3.00736096]
[1768664365470,4.99825333,3326.0,3325.0,3.50249718]
[1768664365772,4.99825333,3326.0,3325.0,0.495]
[1768664365979,4.99825333,3326.0,3324.8,3.50267438]
[1768664366179,4.99825333,3326.0,3324.9,3.00760925]
[1768664366180,4.99825333,3325.9,3324.9,3.00760925]
[1768664366380,4.99825333,3325.9,3324.8,3.50269141]
[1768664366948,4.99825333,3325.9,3324.8,8.64331143]
[1768664368184,4.99825333,3325.9,3324.5,5.14162002]
[1768664368350,4.99825333,3325.7,3324.7,3.00775899]
[1768664368779,4.99825333,3325.5,3324.7,3.00775899]
[1768664369288,0.496,3325.6,3324.8,5.14062002]
[1768664369495,4.99825333,3325.8,3325.0,5.14062002]
[1768664369682,5.49425333,3325.8,3325.0,5.14062002]
[1768664372903,3.5398536,3325.7,3324.7,0.9179188]
[1768664373063,3.5398536,3325.7,3324.7,3.50278423]
[1768664373593,3.5398536,3325.7,3324.6,3.63380517]
[1768664373833,3.5398536,3325.7,3324.7,3.00778815]
[1768664374985,3.5398536,3325.6,3324.7,3.49170479]
[1768664375185,4.0358536,3325.6,3324.7,3.49170479]
[1768664375410,4.0358536,3325.6,3324.8,3.96314918]
[1768664376895,3.5398536,3325.8,3324.8,3.96314918]
[1768664377105,4.0358536,3325.8,3324.9,3.00760925]
[1768664377461,3.5398536,3325.7,3324.9,3.00760925]
[1768664377788,3.5398536,3325.7,3325.0,0.001]
[1768664379097,3.5398536,3325.6,3325.0,0.001]
[1768664379281,0.002,3326.1,3325.2,2.51006244]
[1768664379282,3.5418536,3326.1,3325.2,2.51006244]
[1768664380085,0.002,3326.1,3325.2,2.51006244]
[1768664381060,0.002,3326.1,3325.3,5.04323953]
[1768664381261,0.002,3326.1,3325.4,2.03599207]
[1768664381483,4.0358536,3326.0,3325.3,3.00724746]
[1768664381685,4.0358536,3326.0,3325.0,0.001]
[1768664381990,4.0358536,3326.0,3325.2,3.00733057]
[1768664383016,4.0358536,3326.0,3325.0,3.0084646]
[1768664383189,3.5398536,3325.8,3325.0,0.001]
[1768664383596,0.496,3325.7,3325.0,1.57374948]
[1768664383798,4.0358536,3325.7,3325.0,1.57374948]
[1768664384186,3.5398536,3325.7,3325.0,0.001]
[1768664384534,0.498,3326.1,3325.2,1.3451111]
[1768664384836,0.498,3326.1,3325.4,1.12008737]
[1768664385337,0.498,3326.1,3325.5,4.12715397]
[1768664385483,4.0378536,3326.1,3325.5,3.0070666]
[1768664387521,4.0378536,3326.1,3325.3,6.01447431]
[1768664387721,4.0378536,3326.1,3325.3,6.72793048]
[1768664388333,3.5418536,3326.1,3325.3,7.18833595]
[1768664388514,0.496,3326.0,3325.4,0.46040547]
[1768664388715,0.496,3326.0,3325.5,0.24554345]
[1768664388932,0.496,3325.9,3325.5,0.24554345]
[1768664390008,0.496,3325.8,3325.5,3.0070666]
[1768664390209,0.49559551,3325.8,3325.5,3.0070666]
[1768664390454,0.49319102,3325.8,3325.5,3.0070666]
[1768664390607,0.48597753,3325.8,3325.5,3.0070666]
[1768664391573,0.496,3325.7,3325.6,0.03006976]
[1768664391773,0.496,3325.8,3325.5,3.0070666]
[1768664392162,0.496,3325.8,3325.7,0.00721363]
[1768664393031,1.66578662,3325.8,3325.7,0.00721363]
[1768664394201,1.66578662,3325.8,3325.3,3.00723006]
[1768664394202,1.16978662,3325.7,3325.3,3.00723006]
[1768664394472,1.16978662,3325.7,3325.0,3.00850496]
[1768664394671,0.496,3325.6,3325.3,3.0072455]
[1768664394971,1.66578662,3325.6,3325.0,0.35046495]
[1768664395133,1.16978662,3325.5,3325.0,0.35046495]
[1768664395339,1.16978662,3325.5,3325.0,3.00845823]
[1768664396342,1.16978662,3325.5,3325.0,0.001]
[1768664397379,1.16978662,3325.5,3324.5,6.01694224]
[1768664397380,1.16978662,3325.1,3324.5,0.001]
[1768664397682,1.16978662,3324.9,3323.9,4.33902745]
[1768664397902,1.16978662,3325.4,3324.9,0.496]
[1768664398062,1.66578662,3325.4,3325.0,0.51621972]
[1768664398270,1.16978662,3325.4,3325.0,0.51621972]
[1768664398577,0.496,3325.3,3324.9,3.01479341]
[1768664398797,0.496,3325.3,3324.9,0.00721537]
[1768664398976,1.16978662,3325.4,3324.9,0.00721537]
[1768664399294,1.66578662,3325.4,3325.0,0.03007518]
[1768664399465,1.66578662,3325.4,3324.9,0.00721537]
[1768664400089,0.496,3325.4,3324.9,0.00721537]
[1768664400292,1.16978662,3325.3,3324.9,0.00721537]
[1768664401360,1.16978662,3325.2,3324.0,0.43390275]
[1768664401587,1.16978662,3325.2,3324.1,3.00830532]
[1768664401804,0.99470251,3324.9,3323.9,1.18769381]
[1768664402052,0.99470251,3324.7,3323.8,3.00860378]
[1768664402299,0.496,3324.6,3324.1,5.52672126]
[1768664402467,0.496,3324.5,3324.2,1.18769381]
[1768664402675,6.0145134,3325.3,3323.9,1.18769381]
[1768664402676,0.99470251,3324.8,3323.9,1.18769381]
[1768664402877,3.50381831,3324.7,3323.9,1.18769381]
[1768664403079,0.496,3324.7,3323.9,4.19620155]
[1768664403405,3.50379291,3324.7,3323.8,3.00858644]
[1768664403572,0.99470251,3324.6,3323.8,3.00858644]
[1768664404103,0.99470251,3324.6,3323.6,4.1964674]
[1768664404859,3.00797112,3324.5,3323.6,4.1964674]
[1768664405058,4.00267363,3324.5,3323.6,4.1964674]
[1768664405465,0.99470251,3324.4,3323.6,1.18769381]
[1768664405776,0.99470251,3324.4,3323.3,3.49516559]
[1768664405777,0.99470251,3324.4,3323.4,3.00888423]
[1768664406103,0.99470251,3324.4,3323.5,4.19655674]
[1768664406989,3.00815209,3324.3,3323.5,1.18769381]
[1768664407188,0.496,3324.2,3323.5,1.18769381]
[1768664408014,0.99470251,3324.0,3323.0,1.67383835]
[1768664408212,0.99470251,3324.0,3323.0,1.18769381]
[1768664408401,0.99470251,3324.0,3322.8,4.19716809]
[1768664408607,0.99470251,3324.0,3322.8,1.18769381]
[1768664408800,0.99470251,3324.0,3322.9,3.00940427]
[1768664409006,0.99470251,3323.8,3322.8,4.19716899]
[1768664409181,0.99470251,3323.8,3322.8,4.91785376]
[1768664409891,0.99470251,3323.8,3322.8,1.90837858]
[1768664410290,0.99470251,3323.8,3322.8,4.91787342]
[1768664410493,0.99470251,3323.8,3322.8,1.90837858]
[1768664410713,0.496,3323.7,3322.9,0.48614454]
[1768664410883,1.49070251,3323.7,3322.8,1.18769381]
[1768664411213,1.49070251,3323.7,3322.0,3.01018694]
[1768664411214,0.99470251,3323.4,3322.6,3.00968374]
[1768664411415,0.99470251,3323.4,3322.5,3.00976028]
[1768664411622,0.99470251,3323.4,3322.5,4.19745409]
[1768664411794,0.99470251,3323.4,3322.6,0.72073038]
[1768664412292,0.99470251,3323.4,3322.5,1.18769381]
[1768664412497,0.99470251,3323.4,3322.2,4.1976782]
[1768664412709,0.99470251,3323.4,3322.3,4.19765077]
[1768664413225,0.99470251,3323.2,3322.3,1.18769381]
[1768664413720,0.99470251,3323.2,3322.3,4.19764575]
[1768664413881,0.99470251,3323.2,3322.4,1.60745839]
[1768664414075,0.99470251,3323.2,3322.4,2.09360293]
[1768664414277,1.49070251,3323.1,3322.4,0.41976458]
[1768664414591,0.99470251,3323.0,3322.2,3.01004545]
[1768664414925,0.99470251,3323.0,3322.1,4.1978248]
[1768664415123,10.28,3324.3,3322.4,1.18769381]
[1768664415328,0.94370251,3324.0,3322.6,1.18769381]
[1768664415535,0.94370251,3324.0,3322.7,1.21778981]
[1768664415706,3.00833308,3324.1,3322.8,1.18769381]
[1768664416032,0.94370251,3323.9,3323.0,1.18769381]
[1768664416220,0.496,3323.8,3322.9,0.20958338]
[1768664416410,0.496,3323.8,3322.9,1.39727719]
[1768664417136,0.496,3323.8,3323.0,1.18769381]
[1768664417305,0.496,3323.8,3323.1,3.00923836]
[1768664417505,0.496,3323.8,3323.2,0.41969322]
[1768664417835,3.50461913,3323.8,3323.2,0.41969322]
[1768664418038,0.496,3323.8,3323.2,0.41969322]
[1768664420196,0.496,3323.8,3323.2,3.4288025]
[1768664420400,0.496,3323.7,3323.3,1.18769381]
[1768664420599,0.496,3323.7,3323.4,0.48614454]
[1768664420799,0.496,3323.7,3323.3,1.95025822]
[1768664421046,0.94370251,3324.2,3323.4,1.18769381]
[1768664421246,0.496,3323.8,3323.4,1.70392801]
[1768664421451,0.496,3323.8,3323.5,3.25551829]
[1768664421650,0.496,3323.8,3323.7,0.01960778]
[1768664421935,0.94370251,3324.2,3323.7,0.01960778]
[1768664422139,0.496,3324.1,3323.7,0.01960778]
[1768664422902,0.94370251,3324.2,3323.7,0.01960778]
[1768664423103,0.496,3324.2,3323.7,0.01960778]
[1768664423934,1.43970251,3324.2,3323.7,0.01960778]
[1768664426421,0.002,3323.8,3323.7,0.01960778]
[1768664426627,0.79760284,3324.9,3323.8,0.9576991]
[1768664426839,1.29360284,3324.9,3323.8,0.9576991]
[1768664427155,0.94760284,3324.8,3324.0,0.9576991]
[1768664427445,0.496,3325.0,3324.3,0.9576991]
[1768664427661,0.94760284,3325.1,3324.3,0.9576991]
[1768664427807,0.496,3325.0,3324.3,3.96580394]
[1768664428014,0.94760284,3324.9,3324.2,7.34988965]
[1768664428432,3.00735977,3325.2,3324.2,7.34988965]
[1768664428433,0.496,3325.1,3324.3,4.45199573]
[1768664428634,0.94760284,3325.1,3324.4,0.9576991]
[1768664428837,0.002,3325.5,3324.6,0.9576991]
[1768664428838,0.94760284,3325.3,3324.6,0.9576991]
[1768664429021,0.002,3325.5,3324.8,4.34168063]
[1768664429022,0.94960284,3325.5,3324.8,4.34168063]
[1768664429224,1.44560284,3325.5,3324.8,4.34168063]
[1768664429547,0.002,3325.5,3324.9,1.44384364]
[1768664429752,0.002,3325.5,3325.0,0.9576991]
[1768664430054,0.002,3325.5,3325.1,3.00742834]
[1768664431045,0.002,3325.5,3325.0,3.96519312]
[1768664431245,0.002,3325.5,3325.0,0.9576991]
[1768664431562,3.00669894,3326.0,3325.0,0.9576991]
[1768664431563,0.94600248,3327.6,3325.6,0.9576991]
[1768664431704,1.89360532,3327.6,3326.2,0.9576991]
[1768664431909,1.89360532,3327.6,3326.4,0.9576991]
[1768664431910,0.94600248,3327.6,3326.4,0.9576991]
[1768664432110,0.94600248,3327.6,3326.6,0.9576991]
[1768664432311,1.44200248,3327.6,3326.6,0.9576991]
[1768664432539,1.39200248,3327.6,3326.7,0.9576991]
[1768664432846,1.39200248,3327.6,3326.8,0.92814884]
[1768664433246,0.89600248,3327.6,3326.8,0.92814884]
[1768664433949,0.89600248,3327.6,3326.8,6.93992249]
[1768664434451,3.50082138,3328.0,3326.8,6.93992249]
[1768664434452,0.002,3328.2,3327.0,0.92814884]
[1768664434648,0.002,3328.2,3327.2,0.92814884]
[1768664435422,0.002,3328.2,3327.2,1.42314884]
[1768664435620,0.002,3328.2,3327.3,0.92814884]
[1768664435938,0.002,3328.2,3326.9,0.69399225]
[1768664435939,0.91471622,3328.1,3326.9,1.62214109]
[1768664436117,0.91471622,3328.1,3327.0,3.0056886]
[1768664436319,0.91471622,3328.1,3327.0,4.42881737]
[1768664436654,0.91471622,3328.1,3326.8,3.00585658]
[1768664436820,0.91471622,3328.1,3326.7,0.92814884]
[1768664437020,0.91471622,3328.1,3326.8,3.50081344]
[1768664437261,0.91471622,3327.9,3326.8,4.42896228]
[1768664437437,0.91471622,3327.9,3326.8,4.42901653]
[1768664437836,0.35268091,3328.0,3326.0,0.61414454]
[1768664437837,0.91471622,3327.7,3326.4,0.92814884]
[1768664438046,3.91981743,3327.7,3326.5,4.42931147]
[1768664438240,3.91981743,3327.7,3326.2,0.92814884]
[1768664438241,0.91471622,3327.6,3326.2,0.92814884]
[1768664438539,0.002,3327.3,3326.1,3.00651241]
[1768664438869,0.91471622,3327.2,3326.1,3.00651241]
[1768664439070,0.91471622,3327.2,3325.3,5.79883393]
[1768664439071,0.91471622,3327.1,3325.6,0.92814884]
[1768664439371,0.91471622,3327.1,3326.0,3.00661188]
[1768664439729,0.91471622,3327.1,3325.9,3.00669683]
[1768664440574,0.91471622,3326.9,3325.8,3.93493531]
[1768664440738,0.91471622,3326.9,3325.8,7.38472419]
[1768664440938,0.91471622,3326.9,3325.9,0.03006704]
[1768664441144,0.91471622,3326.9,3325.9,0.95821588]
[1768664441622,0.91471622,3326.9,3325.9,1.41429338]
[1768664441874,0.91471622,3326.9,3326.0,0.78708687]
[1768664442077,0.91471622,3327.1,3326.1,0.92814884]
[1768664442376,0.91471622,3327.1,3326.0,1.28208687]
[1768664442674,0.91471622,3327.1,3326.1,6.0130483]
[1768664442873,0.495,3327.2,3326.3,0.92814884]
[1768664444074,0.495,3327.2,3326.2,0.72951352]
[1768664444075,0.91471622,3327.1,3326.2,0.72951352]
[1768664444672,0.91471622,3327.0,3326.0,0.92814884]
[1768664444831,0.91471622,3327.0,3326.1,3.00646674]
[1768664445037,0.91471622,3327.0,3326.2,3.00642661]
[1768664445454,0.91471622,3327.0,3325.5,3.49317812]
[1768664445655,0.91471622,3327.0,3326.1,3.00651778]
[1768664445891,3.00562293,3327.1,3326.1,3.00651778]
[1768664445892,1.30675013,3326.9,3326.1,3.00651778]
[1768664446492,1.30675013,3326.9,3326.2,3.00643175]
[1768664446915,1.30675013,3326.9,3326.0,3.00660624]
[1768664447199,0.91471622,3326.8,3325.6,1.42314884]
[1768664447368,0.91471622,3326.8,3325.9,3.00668727]
[1768664447900,0.91471622,3326.8,3325.8,3.00676126]
[1768664448107,0.91471622,3326.6,3325.7,3.49301921]
[1768664448256,0.91471622,3326.6,3325.4,0.92814884]
[1768664448563,0.91471622,3326.6,3325.4,1.11907818]
[1768664448753,0.91471622,3326.6,3325.5,3.00704797]
[1768664448957,0.91471622,3326.6,3325.5,3.49319251]
[1768664449159,0.91471622,3326.5,3325.5,6.50025911]
[1768664449593,0.91471622,3326.5,3325.5,3.49319251]
[1768664449894,0.91471622,3326.5,3325.5,6.50025911]
[1768664450067,0.91471622,3326.5,3325.5,7.31169284]
[1768664450266,0.91471622,3326.5,3325.5,4.30462624]
[1768664450471,0.91471622,3326.5,3325.5,3.00704797]
[1768664450672,0.91471622,3326.5,3325.4,4.12622617]
[1768664450871,0.91471622,3326.3,3325.8,0.001]
[1768664452194,0.9100283,3326.6,3325.8,0.001]
[1768664453071,0.9100283,3326.4,3325.8,0.001]
[1768664456625,3.9162814,3326.4,3325.8,0.001]
[1768664456812,0.9100283,3326.3,3325.8,0.001]
[1768664456967,0.9100283,3326.1,3325.8,0.001]
[1768664458291,3.50118804,3326.5,3325.8,0.001]
[1768664458292,1.4050283,3326.5,3325.8,0.001]
[1768664458673,4.41120836,3326.5,3325.8,0.001]
[1768664458875,3.91631988,3326.4,3325.8,0.001]
[1768664460081,0.9100283,3326.4,3325.8,0.001]
[1768664460717,3.91628627,3326.4,3325.8,0.001]
[1768664461785,0.9100283,3326.4,3325.8,0.001]
[1768664462114,0.9100283,3326.3,3325.2,3.00732163]
[1768664462316,0.9100283,3326.3,3324.8,3.00769202]
[1768664462811,0.9100283,3326.3,3324.6,3.00782156]
[1768664463014,0.9100283,3326.3,3324.7,3.0077782]
[1768664463183,0.9100283,3326.1,3324.4,6.01610625]
[1768664463385,0.9100283,3325.9,3324.4,6.01610625]
[1768664463693,0.9100283,3325.9,3324.4,3.00804465]
[1768664463897,0.9100283,3325.9,3324.4,6.01610625]
[1768664464090,0.9100283,3325.9,3324.6,0.93660184]
[1768664464304,0.9100283,3325.9,3324.7,0.48614454]
[1768664465597,0.9100283,3325.7,3324.7,3.00779017]
[1768664466519,0.9100283,3325.7,3324.6,4.6913388]
[1768664467294,0.9100283,3325.7,3324.4,3.94460048]
[1768664467500,0.9100283,3325.5,3324.3,3.00815209]
[1768664467712,0.9100283,3325.3,3324.3,3.00815209]
[1768664467932,0.9100283,3325.3,3324.2,0.93660184]
[1768664468098,0.9100283,3325.3,3323.9,0.93660184]
[1768664468298,0.9100283,3325.3,3323.8,3.00854187]
[1768664468513,0.9100283,3325.3,3323.9,0.44401437]
[1768664468713,0.9100283,3325.3,3324.0,3.00836847]
[1768664469812,0.9100283,3325.3,3323.8,3.00857719]
[1768664469813,0.9100283,3325.1,3323.7,3.00867099]
[1768664470419,0.9100283,3325.1,3323.5,0.93660184]
[1768664470628,0.9100283,3325.1,3323.7,3.00869512]
[1768664471012,0.9100283,3325.1,3323.7,6.01739024]
[1768664471213,0.9100283,3325.1,3323.7,3.00869512]
[1768664471699,0.9100283,3324.9,3323.3,0.93660184]
[1768664472028,0.9100283,3324.7,3323.4,0.93660184]
[1768664473236,0.9100283,3324.7,3323.4,1.42274638]
[1768664473439,0.9100283,3324.5,3323.5,3.00887618]
[1768664473625,0.9100283,3324.5,3323.6,0.74405667]
[1768664474329,0.9100283,3324.5,3323.7,0.48614454]
[1768664475120,0.9100283,3324.5,3323.6,0.74405667]
[1768664475325,0.9100283,3324.4,3323.6,3.7538154]
[1768664475527,0.9100283,3324.4,3323.6,6.76260105]
[1768664475724,0.9100283,3324.4,3323.7,0.67626011]
[1768664476940,0.9100283,3324.4,3323.7,1.61286195]
[1768664477543,0.9100283,3324.4,3323.7,4.62147004]
[1768664478142,0.495,3324.3,3323.7,4.62147004]
[1768664479127,0.9100283,3324.8,3323.8,0.93660184]
[1768664479446,1.4050283,3324.7,3324.0,0.93660184]
[1768664479736,0.9100283,3324.6,3323.9,0.76301652]
[1768664480212,0.9100283,3324.4,3323.9,0.76301652]
[1768664481451,0.9100283,3324.4,3323.7,3.00865718]
[1768664482707,0.96296386,3324.3,3323.6,3.94632386]
[1768664482906,0.96296386,3324.3,3323.6,3.00972202]
[1768664483636,0.96296386,3324.2,3323.6,0.001]
[1768664484633,0.91296386,3324.2,3323.6,0.95142352]
[1768664484838,0.96296386,3324.4,3323.7,1.34645349]
[1768664485555,0.96296386,3324.4,3323.8,3.95902812]
[1768664487156,0.96296386,3324.6,3323.9,0.95042352]
[1768664487318,0.495,3324.5,3323.9,0.95042352]
[1768664487950,0.96296386,3324.6,3324.0,3.00842358]
[1768664488111,0.495,3324.5,3323.9,3.95991096]
[1768664488315,0.495,3324.5,3323.9,1.68788585]
[1768664488630,1.45796386,3324.5,3323.9,1.68788585]
[1768664489518,1.45796386,3324.5,3323.9,4.69638768]
[1768664490319,1.45796386,3324.5,3323.9,0.73746233]
[1768664490320,0.96296386,3324.4,3323.9,0.73746233]
[1768664491774,0.96296386,3324.4,3323.9,3.74594639]
[1768664491953,0.96296386,3324.4,3324.0,0.37459464]
[1768664497049,0.96296386,3324.4,3324.0,3.38301128]
[1768664497249,0.96296386,3324.4,3324.0,0.37459464]
[1768664497672,0.495,3324.5,3324.0,4.36158936]
[1768664497975,1.45565194,3324.5,3324.0,4.36158936]
[1768664498174,1.45565194,3324.5,3324.0,1.35317304]
[1768664498674,1.45565194,3324.5,3324.0,4.36157788]
[1768664498866,1.45565194,3324.5,3324.0,1.35317304]
[1768664499551,0.002,3324.2,3324.0,1.35317304]
[1768664499754,0.96065194,3324.4,3324.0,1.35317304]
[1768664499955,0.96065194,3324.4,3324.0,0.37459464]
[1768664500576,0.96065194,3324.4,3324.0,3.38301438]
[1768664500879,0.497,3324.5,3324.0,3.38301438]
[1768664500880,0.002,3325.0,3324.2,0.9785784]
[1768664501078,0.96065194,3325.1,3324.6,0.9785784]
[1768664501279,0.496,3325.0,3324.6,0.9785784]
[1768664501582,0.496,3324.9,3324.6,0.9785784]
[1768664502171,0.496,3325.0,3324.7,0.9785784]
[1768664502357,0.002,3325.3,3324.9,0.9785784]
[1768664502676,0.498,3325.3,3324.9,0.9785784]
[1768664503765,0.002,3325.3,3324.9,0.9785784]
[1768664504149,0.96265194,3325.3,3324.7,4.82003314]
[1768664504347,0.96265194,3325.3,3324.8,0.9785784]
[1768664505758,0.96265194,3325.3,3324.7,3.84145474]
[1768664505980,3.00715885,3325.4,3324.7,3.84145474]
[1768664505981,0.496,3325.5,3325.1,0.9785784]
[1768664506169,1.45665194,3325.8,3325.2,0.9785784]
[1768664506370,3.96744752,3325.8,3325.2,0.9785784]
[1768664506574,4.46344752,3325.8,3325.2,0.9785784]
[1768664506777,3.50279558,3325.8,3325.2,0.9785784]
[1768664506976,0.496,3325.8,3325.2,0.9785784]
[1768664507181,3.00874172,3325.9,3325.2,0.9785784]
[1768664507355,0.496,3325.8,3325.2,0.9785784]
[1768664507887,0.96265194,3325.9,3325.3,0.9785784]
[1768664508786,0.002,3325.9,3325.3,0.9785784]
[1768664509086,0.96065194,3325.8,3325.2,4.03449365]
[1768664509286,0.96065194,3325.8,3325.2,8.02040995]
[1768664509590,0.96065194,3325.8,3325.3,0.9785784]
[1768664509775,3.00610621,3326.6,3325.3,0.9785784]
[1768664509776,0.96065194,3326.5,3325.8,0.9785784]
[1768664510084,0.96065194,3326.5,3325.7,6.01377152]
[1768664510085,3.96681898,3326.5,3325.9,0.9785784]
[1768664510252,0.96065194,3326.4,3325.9,0.9785784]
[1768664511673,0.96065194,3326.4,3325.7,3.00688576]
[1768664511674,0.96065194,3326.4,3325.8,0.98583293]
[1768664511990,0.90200574,3326.3,3325.4,1.44114413]
[1768664512154,0.90200574,3326.3,3325.5,3.00699201]
[1768664512356,0.90200574,3326.3,3325.6,3.00697171]
[1768664512553,0.90200574,3326.3,3325.7,0.98583293]
[1768664513006,0.90200574,3326.3,3325.7,3.99265277]
[1768664513494,0.90200574,3326.3,3325.8,3.00675876]
[1768664514592,0.90200574,3326.3,3325.7,3.00688472]
[1768664514992,0.90200574,3326.3,3325.3,0.98583293]
[1768664515162,0.90200574,3326.3,3325.6,3.00697262]
[1768664516494,0.90200574,3326.1,3325.4,6.01430126]
[1768664516747,0.90200574,3326.1,3325.4,7.00013419]
[1768664517696,0.90200574,3326.1,3325.4,3.00714423]
[1768664518474,0.90200574,3326.1,3325.3,7.00032415]
[1768664519368,0.90200574,3326.0,3325.3,3.00724376]
[1768664519692,0.90200574,3325.8,3325.3,3.00724376]
[1768664520987,0.90200574,3325.8,3325.2,3.0073379]
[1768664522101,0.90200574,3325.8,3325.2,6.0146758]
[1768664523190,0.90200574,3325.8,3325.1,6.01485668]
[1768664524116,0.90200574,3325.7,3325.1,3.00742834]
[1768664524416,0.90200574,3325.7,3324.5,0.98583293]
[1768664524578,0.90200574,3325.7,3324.8,3.00769385]
[1768664524779,0.34069677,3325.4,3324.3,1.44114413]
[1768664524995,0.34069677,3325.2,3324.6,3.00784421]
[1768664525208,0.34069677,3325.2,3324.4,0.98583293]
[1768664526325,0.34069677,3325.2,3324.3,6.01630418]
[1768664526326,0.34069677,3325.1,3324.3,3.00815209]
[1768664526487,0.34069677,3324.9,3324.3,3.00815209]
[1768664526681,0.34069677,3324.7,3324.3,3.00815209]
[1768664527180,6.0130483,3326.1,3324.2,7.00229772]
[1768664527387,0.495,3326.0,3324.6,0.98583293]
[1768664527716,0.495,3325.9,3324.6,0.98583293]
[1768664529225,6.0135907,3325.8,3324.6,3.99365854]
[1768664529613,6.0135907,3325.8,3324.6,3.00782561]
[1768664530913,6.0135907,3325.8,3324.5,3.00797112]
[1768664531116,9.02038605,3325.8,3324.5,3.00797112]
[1768664532215,3.00643376,3326.2,3324.8,0.98583293]
[1768664532420,0.495,3326.1,3324.8,0.98583293]
[1768664532582,0.495,3326.1,3324.9,0.98583293]
[1768664532785,0.495,3326.1,3325.0,4.33808643]
[1768664533013,3.00661455,3326.0,3325.3,0.98583293]
[1768664533419,0.495,3325.9,3325.3,0.98583293]
[1768664534186,6.0132291,3326.0,3325.3,0.98583293]
[1768664534385,0.495,3325.9,3325.3,0.98583293]
[1768664535120,3.50171943,3325.9,3325.3,0.98583293]
[1768664535281,3.50171943,3325.9,3324.9,3.00759255]
[1768664535282,0.35017194,3325.8,3325.0,3.00749507]
[1768664535501,0.35017194,3325.8,3325.1,3.00740545]
[1768664535702,0.35017194,3325.8,3325.3,3.00720112]
[1768664536037,0.495,3325.7,3325.4,0.98583293]
[1768664536934,0.002,3325.5,3325.4,0.98583293]
[1768664537136,0.495,3325.7,3325.4,0.98583293]
[1768664539136,0.495,3325.7,3325.2,3.00732835]
[1768664539137,0.495,3325.7,3325.2,0.98583293]
[1768664539306,0.495,3325.7,3325.2,3.99317031]
[1768664539846,0.495,3325.7,3325.3,0.98583293]
[1768664541311,0.495,3325.7,3325.3,3.99305092]
[1768664542743,0.495,3325.7,3325.4,0.91862205]
[1768664543063,0.495,3325.7,3325.3,3.00721799]
[1768664543213,0.495,3325.7,3325.1,3.00740774]
[1768664543414,0.495,3325.7,3325.1,3.70075393]
[1768664543618,0.495,3325.7,3325.1,4.61937598]
[1768664543943,0.495,3325.7,3325.1,7.62680432]
[1768664544152,0.495,3325.7,3325.2,0.91862205]
[1768664545748,0.495,3325.7,3325.3,3.00724746]
[1768664545946,0.495,3325.7,3325.3,3.92586951]
[1768664546445,0.495,3325.7,3325.4,0.91862205]
[1768664548853,0.495,3325.7,3325.5,0.001]
[1768664551659,3.50190228,3325.7,3325.5,0.001]
[1768664551861,10.28,3326.8,3325.6,0.91862205]
[1768664552063,3.0050395,3327.8,3325.7,0.91862205]
[1768664552064,3.00607226,3326.6,3325.7,0.91862205]
[1768664552355,3.5011094,3326.6,3325.8,0.91862205]
[1768664552531,3.5011094,3326.6,3325.9,0.91862205]
[1768664553152,6.5072188,3326.6,3325.9,0.91862205]
[1768664553841,3.5011094,3326.6,3325.9,0.91862205]
[1768664554535,6.5072188,3326.6,3325.9,0.91862205]
[1768664554858,6.5072188,3326.6,3325.7,3.94061825]
[1768664555157,6.5072188,3326.6,3325.7,3.94063853]
[1768664555522,6.5072188,3326.6,3325.7,0.93376715]
[1768664556247,6.5072188,3326.6,3325.7,3.9406512]
[1768664556451,10.84530523,3326.6,3325.5,0.93476715]
[1768664556650,10.84530523,3326.6,3325.5,3.94182333]
[1768664556850,13.85141463,3326.6,3325.5,0.93476715]
[1768664557459,13.85141463,3326.6,3325.5,0.001]
[1768664558260,13.85141463,3326.6,3325.5,0.93476715]
[1768664558261,0.28115902,3326.5,3325.5,0.93476715]
[1768664558480,9.5133282,3326.6,3325.5,0.93476715]
[1768664558630,0.28119542,3326.5,3325.5,0.93476715]
[1768664558827,9.5133282,3326.6,3325.5,0.93476715]
[1768664559135,0.28119917,3326.5,3325.5,0.93476715]
[1768664559460,9.5133282,3326.6,3325.5,0.001]